Cogmind - Beta 9.2 @@@ ROGUE MODE // 2019.12.07 @ 11:38:52 Player: taro Result: Destroyed by G-47 Trooper with Particle Gun Performance ------------- Evolutions (1) 500 Regions Visited (3) 600 Robots Destroyed (41) 205 Value Destroyed (883) 883 Prototype IDs (0) 0 Alien Tech Used (0) 0 Bonus (0) 0 TOTAL SCORE: 2188 Bonus ------- None Cogmind --------- Core Integrity 0/400 Matter 300/300 Energy 100/100 System Corruption 0% Temperature Cool (9) Movement Core (550) Ox10 Location -9/Storage Parts ------- > --- POWER (1) -------- (None) > --- PROPULSION (3) --- (None) > --- UTILITY (3) ------ High-capacity Storage Unit Terrain Scan Processor Targeting Computer > --- WEAPON (2) ------- (None) > --- INVENTORY (12) --- Light Ion Engine Improved Ion Engine Heat Sink Heat Sink Peak State ------------ > --- POWER ------------ Improved Ion Engine > --- PROPULSION ------- Aluminum Leg Aluminum Leg Aluminum Leg > --- UTILITY ---------- Heat Sink High-capacity Storage Unit Targeting Computer > --- WEAPON ----------- Small Laser Heavy Assault Rifle > --- INVENTORY -------- Light Ion Engine Improved Ion Engine Aluminum Leg Aluminum Leg Heat Sink Terrain Scan Processor Grenade Launcher Grenade Launcher [Rating: 12] Favorites ----------- Power Ion Engine Engine Ion Engine Propulsion Aluminum Leg Leg Aluminum Leg Utility High-capacity Storage Unit Device Heat Sink Storage High-capacity Storage Unit Processor Targeting Computer Weapon Small Laser Energy Gun Small Laser Ballistic Gun Heavy Assault Rifle Launcher Grenade Launcher Build | -11 -10 -9 -9 ------- Run | Scr Mat Mat Sto Slots Evolved 2 | . . 2 . Power . | . . . . Propulsion 1 | . . 1 . Utility 1 | . . 1 . Weapon . | . . . . Parts Attached 44 | 6 6 16 16 Power 5 | 1 . 1 3 Engine 5 | 1 . 1 3 Core . | . . . . Reactor . | . . . . Propulsion 12 | 2 . 6 4 Treads . | . . . . Leg 12 | 2 . 6 4 Wheel . | . . . . Hover . | . . . . Flight . | . . . . Utility 7 | 1 2 2 2 Device 3 | . 1 1 1 Storage 2 | 1 1 . . Processor 2 | . . 1 1 Hackware . | . . . . Protection . | . . . . Artifact . | . . . . Weapon 20 | 2 4 7 7 Energy Gun 11 | 2 2 4 3 Energy Cannon . | . . . . Ballistic Gun 2 | . . . 2 Ballistic Cannon . | . . . . Launcher 7 | . 2 3 2 Special Weapon . | . . . . Impact Weapon . | . . . . Slashing Weapon . | . . . . Piercing Weapon . | . . . . Special Melee Weapon . | . . . . Unidentified Prototypes . | . . . . Parts Lost 24 | . . 5 19 Power 3 | . . . 3 Propulsion 9 | . . 2 7 Utility 1 | . . . 1 Weapon 11 | . . 3 8 Highest Loss Streak 4 | . . 2 4 Average Slot Usage (%) 84 | . 86 98 70 Engine 10 | . 14 11 8 Leg 25 | . 28 33 16 Device 7 | . 1 11 7 Storage 11 | . 14 11 11 Processor 8 | . . 10 11 Energy Gun 15 | . 27 19 5 Ballistic Gun 2 | . . . 6 Launcher 2 | . . 1 3 Naked Turns . | . . . . Heaviest Build 44 | 12 42 44 44 Greatest Support 30 | 20 20 30 30 Greatest Overweight (x) 13 | . 2 1 13 Average Overweight (x) 1 | . . 1 3 Largest Inventory Capacity 14 | 6 14 12 12 Average Capacity 11 | 4 11 12 12 Most Carried 12 | 6 12 12 8 Average Carried 7 | 4 8 10 5 Final Capacity 12 | 6 12 12 12 Final Carried 11 | 6 11 8 4 Class Distribution -------------------- 74% | Mutant 25% | Scavenger-Mutant Dominant Class ---------------- Mutant | -10/Materials Mutant | -9/Materials Mutant | -9/Storage Resources | -11 -10 -9 -9 ----------- Run | Scr Mat Mat Sto Matter Collected 995 | 222 116 261 396 Remotely . | . . . . Salvage Created 1384 | . 116 519 749 Parts 83 | . 10 32 41 Haulers Intercepted . | . . . . Recyclers Shooed 6 | . 2 2 2 Parts Field Recycled . | . . . . Retrieved Matter . | . . . . Parts Self-Destructed . | . . . . Prevented . | . . . . Kills | -11 -10 -9 -9 ------- Run | Scr Mat Mat Sto Combat Hostiles Destroyed 25 | . 2 13 10 Guns 16 | . 2 8 6 AOE 9 | . . 5 4 Classes Destroyed 8 | . 2 3 3 Worker 2 | . . . 2 Builder 4 | . . . 4 Recycler 7 | . . 2 5 Operator 1 | . . . 1 Watcher 2 | . 2 . . Swarmer 9 | . . 6 3 Grunt 9 | . 2 4 3 Sentry 7 | . . 3 4 Best Kill Streak 8 | . 1 8 6 Combat Bots Only 7 | . 1 7 4 Max Kills in Single Turn 4 | . 1 4 2 Gunslinging . | . . . . Exploded 2 | . . 2 1 Melee . | . . . . Uniques/NPCs Destroyed . | . . . . Combat | -11 -10 -9 -9 -------- Run | Scr Mat Mat Sto Damage Taken 2120 | . 54 672 1394 Core 425 | . 23 128 274 Absorbed by Shields . | . . . . Core Remaining (%) 95 | 100 90 . . Volleys Fired 118 | . 8 42 68 Largest 2 | . 2 2 2 Hottest 90 | . 90 90 86 Shots Fired 171 | . 14 77 80 Gun 144 | . 12 67 65 Cannon . | . . . . Launcher 27 | . 2 10 15 Special . | . . . . Kinetic 36 | . . . 36 Thermal 108 | . 12 67 29 Explosive 27 | . 2 10 15 Electromagnetic . | . . . . Robot Hit Streak 13 | . 4 11 13 Robot Miss Streak 3 | . 1 3 3 Penetration Max . | . . . . Secondary Targets . | . . . . Shots Hit Robots 109 | . 7 44 58 Core Hits 76 | . 7 26 43 Critical Hits . | . . . . Critical Kills . | . . . . Critical Parts Destroyed . | . . . . Melee Attacks . | . . . . Impact . | . . . . Slashing . | . . . . Piercing . | . . . . Sneak Attacks . | . . . . Combat Hostiles . | . . . . Follow-up Attacks . | . . . . Damage Inflicted 2557 | . 142 901 1514 Guns 1304 | . 79 526 699 Cannons . | . . . . Explosions 1241 | . 63 375 803 Melee . | . . . . Ramming 12 | . . . 12 Kinetic 426 | . . . 426 Thermal 878 | . 79 526 273 Explosive 1241 | . 63 375 803 Electromagnetic . | . . . . Impact . | . . . . Slashing . | . . . . Piercing . | . . . . Highest Corruption . | . . . . Average Corruption . | . . . . Corruption Purged . | . . . . Overload Shots . | . . . . Overflow Damage 114 | . . 33 81 Projectiles . | . . . . Explosions 114 | . . 33 81 Melee . | . . . . Knockbacks . | . . . . Impact . | . . . . Kinetic . | . . . . Secondary . | . . . . Self-Inflicted Damage 321 | . . 121 200 Shots 12 | . . 4 8 Rammed 6 | . 1 . 5 Targets Rammed 6 | . 1 . 5 Kicked . | . . . . Crushed . | . . . . Highest Temperature 150 | . 150 15 3 Average Temperature 34 | . 60 5 3 Received Heat Transfer 630 | . 30 177 423 Siege Activations . | . . . . Robots Corrupted . | . . . . Combat Hostiles . | . . . . Parts Fried . | . . . . Impact Corruptions . | . . . . Robots Melted . | . . . . Combat Hostiles . | . . . . Parts Melted 8 | . 1 5 2 Heat Transferred 2224 | . 211 1389 624 Parts Sabotaged . | . . . . Parts Stolen . | . . . . Parts Stripped . | . . . . Power Chain Reactions . | . . . . Missiles Intercepted . | . . . . Alert | -11 -10 -9 -9 ------- Run | Scr Mat Mat Sto Peak Influence 360 | . 75 282 360 Average Influence 111 | . 28 113 172 Maximum Alert Level 1 | . . 1 1 Low Security (%) 81 | 100 100 68 81 Level 1 18 | . . 31 18 Level 2 . | . . . . Level 3 . | . . . . Level 4 . | . . . . Level 5 . | . . . . High Security . | . . . . Max Security . | . . . . Squads Dispatched 4 | . . 2 2 Investigation . | . . . . Extermination . | . . . . Reinforcement 4 | . . 2 2 Assault . | . . . . Garrison . | . . . . Intercept . | . . . . Construction Impeded 1 | . . . 1 Haulers Reinforced . | . . . . Stealth | -11 -10 -9 -9 --------- Run | Scr Mat Mat Sto Distress Signals 1 | . . . 1 Communications Jammed . | . . . . Distress Signals . | . . . . Times Spotted 41 | . 5 19 17 Peak Tracking Total 4 | . 2 4 4 Tactical Retreats 5 | . 1 2 2 Traps | -11 -10 -9 -9 ------- Run | Scr Mat Mat Sto Traps Triggered . | . . . . Indirectly . | . . . . Trap Hack Attempts . | . . . . Triggered . | . . . . Disarmed . | . . . . Reprogrammed . | . . . . Reused . | . . . . Traps Extracted . | . . . . Installed . | . . . . Triggered . | . . . . Machines | -11 -10 -9 -9 ---------- Run | Scr Mat Mat Sto Machines Disabled 6 | . . 3 3 Max in Single Turn 1 | . . 1 1 Machines Sabotaged . | . . . . Garrisons Compromised . | . . . . Overloaded Fab Kills . | . . . . Fab Network Shutdowns . | . . . . Hacking | -11 -10 -9 -9 --------- Run | Scr Mat Mat Sto Machines Accessed 5 | . 2 3 . Terminals 3 | . 1 2 . Fabricators . | . . . . Repair Stations . | . . . . Recycling Units 2 | . 1 1 . Scanalyzers . | . . . . Garrison Access . | . . . . Total Hacks 15 | . 4 11 . Successful 10 | . 4 6 . Failed 5 | . . 5 . Catastrophic . | . . . . Database Lockouts . | . . . . Manual . | . . . . Terminals 12 | . 3 9 . Fabricators . | . . . . Repair Stations . | . . . . Recycling Units 3 | . 1 2 . Scanalyzers . | . . . . Garrison Access . | . . . . Terminal Hacks 8 | . 3 5 . Record 4 | . 1 3 . Alert Level 1 | . 1 . . Locate Traps 2 | . 1 1 . Assault Status 1 | . . 1 . Fabricator Hacks . | . . . . Repair Station Hacks . | . . . . Recycling Unit Hacks 2 | . 1 1 . Process 1 | . 1 . . Retrieve Components 1 | . . 1 . Scanalyzer . | . . . . Garrison Access Hacks . | . . . . Unauthorized Hacks . | . . . . Terminals . | . . . . Fabricators . | . . . . Repair Stations . | . . . . Recycling Units . | . . . . Scanalyzers . | . . . . Garrison Access . | . . . . Data Cores Recovered . | . . . . Used . | . . . . Hacking Detections 3 | . . 3 . Full Trace Events . | . . . . Feedback Events . | . . . . Feedback Blocked . | . . . . Robot Schematics Acquired . | . . . . Robots Built . | . . . . Matter . | . . . . Time . | . . . . Total Robot Build Rating . | . . . . Part Schematics Acquired . | . . . . Parts Built . | . . . . Matter . | . . . . Time . | . . . . Total Part Build Rating . | . . . . Parts Repaired . | . . . . Time . | . . . . Parts Recycled . | . . . . Recycled Matter 31 | . 31 . . Retrieved Matter . | . . . . Retrieved Components 10 | . . 10 . Parts Scanalyzed . | . . . . Part Schematics Acquired . | . . . . Parts Damaged . | . . . . Bothacking | -11 -10 -9 -9 ------------ Run | Scr Mat Mat Sto Used RIF Installer . | . . . . Robots Hacked . | . . . . Non-combat . | . . . . Combat . | . . . . Robot Hacks Applied . | . . . . Relay Couplers Released . | . . . . Robots Rewired . | . . . . Allies Hacked . | . . . . Hacks Repelled . | . . . . Allies | -11 -10 -9 -9 -------- Run | Scr Mat Mat Sto Total Allies . | . . . . Largest Group . | . . . . Highest-Rated Group . | . . . . Highest-Rated Ally . | . . . . Total Orders . | . . . . Ally Attacks . | . . . . Total Damage . | . . . . Kills . | . . . . Allies Corrupted . | . . . . Allies Melted . | . . . . Intel | -11 -10 -9 -9 ------- Run | Scr Mat Mat Sto Robot Analysis Total . | . . . . Derelict Logs Recovered . | . . . . Drone Launches . | . . . . Drone Recoveries . | . . . . Exploration | -11 -10 -9 -9 ------------- Run | Scr Mat Mat Sto Turns Passed 1992 | 84 451 699 758 Spaces Moved 826 | 69 264 272 221 Core 51 | 19 . . 32 Treads . | . . . . Legs 775 | 50 264 272 189 Wheels . | . . . . Hover . | . . . . Flight . | . . . . Fastest Speed 50 | 50 120 150 150 Average Speed 169 | 100 147 150 242 Slowest Speed 700 | 120 180 150 700 Overloaded Moves . | . . . . Propulsion Burnouts . | . . . . Robots Hopped . | . . . . Cave-ins Triggered . | . . . . Exploration Rate (%) 19 | 3 33 19 23 Regions Visited 3 Branch Regions 1 Pre-discovered Areas . | . . . . Known Exits Taken . | . . . . Unknown Exits Taken 3 | 1 1 1 . Scrap Searched . | . . . . Spaces Dug . | . . . . Terrain Destroyed 180 | . 10 89 81 Melee . | . . . . Projectile . | . . . . AOE 180 | . 10 89 81 Actions | -11 -10 -9 -9 --------- Run | Scr Mat Mat Sto Total 1231 | 81 310 487 353 Wait 207 | . 19 145 43 Move 823 | 68 263 271 221 Hop . | . . . . Pick Up 22 | 7 9 6 . Fast Attach 14 | 5 1 1 7 Attach 14 | 1 1 6 6 Detach . | . . . . Swap 16 | . 4 9 3 Drop 11 | . 4 7 . Fire 118 | . 8 42 68 Melee . | . . . . Ram 1 | . . . 1 Kick 5 | . 1 . 4 Crush . | . . . . Escape Stasis . | . . . . Rewire . | . . . . Trap . | . . . . Miscellaneous . | . . . . Route ------- -11/Scrapyard -10/Materials -9/Materials -9/Storage History --------- Turn | Location | Event 12 | -11/Scrapyard | Discovered new exit (range 14) 85 | -11/Scrapyard | Entered Materials 230 | -10/Materials | Discovered new exit (range 15) 309 | -10/Materials | Build established: Mutant 536 | -10/Materials | Entered another Materials area 536 | -9/Materials | Evolved 2 slots: Propulsion x1, Utility x1 1035 | -9/Materials | Destroyed 7 combat bots 1145 | -9/Materials | Discovered new exit (range 12) 1235 | -9/Materials | Entered Storage 1298 | -9/Storage | Build established: Scavenger-Mutant 1422 | -9/Storage | Core integrity fell below 50% 1461 | -9/Storage | Lost 4 parts (1p2n1w) 1530 | -9/Storage | Lost 3 parts (2n1w) 1648 | -9/Storage | Lost 3 parts (2n1w) 1757 | -9/Storage | Core integrity fell below 20% 1797 | -9/Storage | Build established: Mutant 1993 | -9/Storage | Destroyed by G-47 Trooper with Particle Gun Last Messages --------------- 01951_ U-05 Engineer lays Concrete. 01953_ K-01 Serf cleans the Transfer Shaft. 01954_ U-05 Engineer builds a Wall. 01966_ U-05 Engineer lays Concrete. 01967_ C-30 ARC bursts open, deploying its payload. 01967_ G-47 Trooper unfolds itself. 01967_ G-34 Mercenary unfolds itself. 01972_ U-05 Engineer builds a Wall. 01975_ Acquired 10 matter. 01980_ Hvy. Assault Rifle destroyed. 01984_ Slammed into G-34 Mercenary. 01986_ Destabilizing: System interference. 01986_ Terrain Scan Processor temporarily disabled. 01988_ Slammed into G-34 Mercenary. 01990_ Destabilizing: Core damaged (-16). 01991_ Aluminum Leg destroyed. 01992_ Ion Engine destroyed. 01992_ Slammed into G-34 Mercenary. 01992_ Destabilizing: System interference. 01992_ Targeting Computer temporarily disabled. Map ----- +----------------------------------------------------+ | ????????????# ""??" #?????????????????????? | | ????????????# "??"" #?????????????????????? | | ????????????# "???" #?????????????????????? | | ????????????# """"" #?????????????????????? | | ????????????# #?????????????????????? | | ????????????##+########?????????????????????? | | ?????????????# #????????????????????????????? | | ?????????????# #???????#########????????????? | | ?????????????#|##??????# ?????????????? | | ???????????###%###?????# """"" #????????????? | | ???????????## ######## """"" #????????????? | | ???????????## % %+ """"" #????????????? | | ???????????## ###### # #????????????? | | ???????????#######???# ##+######????????????? | | ???????????### ????# #?????????????????? | | ?????????????# ????# #?????????????????? | | ?????????????# """??## ########??????????? | | ?????????????# """??+ ????? | | ????????????? """ ?## ##/# ## #####????????? | | ?????????????# ?##%## #????????? | | ??????????????###+### # ##????????? | | ???????????####?# / #?????????? | | ???????????#]] # # #?????????? | | ?????????????? + #################??????? | | ????????????????# rk% u % #??????? | | ????????????????#k %@g #??????? | | ????????????????# g % ##?????? | | ????????????????### ###########+##### #?????? | | ??????????????????# ## # ###?????? | | ??????????????????# ### # % ##?????? | | ??????????????????# #?###### # #?????? | | ??????????????????# #??????# " ###?????? | | ??????????????????#+#??????# " # ????? | | ?????????????????? ??????# """# ??? | | ?????????????????? ??????# """# #?? | | ??????????????????"""??????# """#? ! + ? | | ??????????????????"""??????# #?? # | | ??????????????????"""??????##########??? #?? | | ???????????????????????????????????????? #?? | | ?????????????????????????????????????????##?? | | ????????????????????????????????????????????? | | ????????????????????????????????????????????? | | ????????????????????????????????????????????? | | ????????????????????????????????????????????? | | ????????????????????????????????????????????? | | ????????????????????????????????????????????? | | ????????????????????????????????????????????? | | ????????????????????????????????????????????? | | ????????????????????????????????????????????? | | ????????????????????????????????????????????? | +----------------------------------------------------+ Best States ------------- Heat Dissipation 38 Energy Generation 12 Energy Capacity 265 Matter Stores 300 Matter Capacity 300 Sight Range 16 Terrain Scan Density 85 Evasion (%) 50 Targeting Accuracy 5 Item Schematics ----------------- None Robot Schematics ------------------ None Fabricated ------------ Nothing Alien Tech Used ----------------- None Achievements -------------- Hey, That's Mine! Challenges ------------ None Game ------ Seed SystemCouplerSystem Manual? 0 Play Time 00:26:22 Cumulative 10.9 hours Start 2019.12.07 @ 11:14:47 End 2019.12.07 @ 11:38:52 Sessions 1 Manual Loads 0 Difficulty Rogue Special Mode None Game No. 23 Rogue 23 Adventurer 0 Explorer 0 Win Type - Total 0 Types 0/0/0/0/0/0/0 Lore% 5 Gallery% 15 Achievement% 12 Wizard Run 0 Options --------- ASCII 0 Keyboard 0 Movement Numpad Keybinds 0 Fullscreen 1 Font 18/SmallcapsGlow Map View 76x50 Tactical HUD 1 Map Filters NONE Filters NONE Steam 1 RUN: d1a6d972-eb58-451a-8dd4-ea52cb0e4a1e